[Event "Live Chess"]
[Site "Chess.com"]
[Date "2023.05.20"]
[Round "-"]
[White "Greenbecker"]
[Black "birdseed45"]
[Result "1/2-1/2"]
[WhiteElo "1629"]
[BlackElo "1874"]
[TimeControl "300"]
[EndTime "13:25:32 PDT"]
[Termination "Game drawn by repetition"]

1. e4 {[%clk 0:04:56.4]} 1... c5 {[%clk 0:04:59.2]} 2. Nf3 {[%clk 0:04:54.6]}
2... Nc6 {[%clk 0:04:58.7]} 3. d4 {[%clk 0:04:53.7]} 3... cxd4 {[%clk
0:04:58.6]} 4. Nxd4 {[%clk 0:04:52.9]} 4... e5 {[%clk 0:04:58.2]} 5. Nxc6 {[%clk
0:04:51.6]} 5... bxc6 {[%clk 0:04:58.1]} 6. Bc4 {[%clk 0:04:50.8]} 6... Ba6
{[%clk 0:04:56]} 7. Bxa6 {[%clk 0:04:48.7]} 7... Qa5+ {[%clk 0:04:54.9]} 8. Nc3
{[%clk 0:04:46.5]} 8... Qxa6 {[%clk 0:04:54.2]} 9. Qe2 {[%clk 0:04:45.7]} 9...
Qb6 {[%clk 0:04:48.3]} 10. O-O {[%clk 0:04:43.5]} 10... Nf6 {[%clk 0:04:46.5]}
11. b3 {[%clk 0:04:40.3]} 11... Bb4 {[%clk 0:04:43.6]} 12. Na4 {[%clk 0:04:38]}
12... Qc7 {[%clk 0:04:40.6]} 13. Be3 {[%clk 0:04:36.2]} 13... d6 {[%clk
0:04:37.4]} 14. c3 {[%clk 0:04:30.5]} 14... Ba5 {[%clk 0:04:33.4]} 15. b4 {[%clk
0:04:27.2]} 15... Bb6 {[%clk 0:04:32.3]} 16. Nxb6 {[%clk 0:04:25.5]} 16... axb6
{[%clk 0:04:32.2]} 17. f3 {[%clk 0:04:24.6]} 17... O-O {[%clk 0:04:30.5]} 18.
Rfd1 {[%clk 0:04:21.2]} 18... Ra3 {[%clk 0:04:25]} 19. Qd2 {[%clk 0:04:15.6]}
19... d5 {[%clk 0:04:19.8]} 20. exd5 {[%clk 0:04:12.9]} 20... cxd5 {[%clk
0:04:19.7]} 21. Bg5 {[%clk 0:04:07.1]} 21... Rxc3 {[%clk 0:03:56.1]} 22. Bxf6
{[%clk 0:04:03]} 22... gxf6 {[%clk 0:03:56]} 23. Qxd5 {[%clk 0:04:00.8]} 23...
Rc2 {[%clk 0:03:51.2]} 24. Qd6 {[%clk 0:03:52.2]} 24... Qc3 {[%clk 0:03:42.9]}
25. Qxf6 {[%clk 0:03:38.3]} 25... Qe3+ {[%clk 0:03:41.3]} 26. Kh1 {[%clk
0:03:33.6]} 26... Qf2 {[%clk 0:03:34]} 27. Qg5+ {[%clk 0:03:29.5]} 27... Kh8
{[%clk 0:03:30.5]} 28. Qf6+ {[%clk 0:03:26.9]} 28... Kg8 {[%clk 0:03:29.1]} 29.
Qg5+ {[%clk 0:03:25.7]} 29... Kh8 {[%clk 0:03:28.3]} 30. Qf6+ {[%clk 0:03:24.6]}
30... Kg8 {[%clk 0:03:27.5]} 1/2-1/2

[Event "Live Chess"]
[Site "Chess.com"]
[Date "2023.05.20"]
[Round "-"]
[White "PiotrD11"]
[Black "Bill0007"]
[Result "1-0"]
[WhiteElo "1370"]
[BlackElo "1490"]
[TimeControl "300"]
[EndTime "13:25:44 PDT"]
[Termination "PiotrD11 won on time"]

1. e4 {[%clk 0:04:57.9]} 1... d5 {[%clk 0:04:58.9]} 2. exd5 {[%clk 0:04:56.7]}
2... Nf6 {[%clk 0:04:57.9]} 3. d4 {[%clk 0:04:54.8]} 3... Nxd5 {[%clk
0:04:54.6]} 4. c4 {[%clk 0:04:53.2]} 4... Nf6 {[%clk 0:04:48.4]} 5. Nc3 {[%clk
0:04:51.9]} 5... Nc6 {[%clk 0:04:35.5]} 6. d5 {[%clk 0:04:36.4]} 6... Ne5 {[%clk
0:04:07]} 7. Bf4 {[%clk 0:04:21.4]} 7... Ng6 {[%clk 0:04:03.9]} 8. Bg3 {[%clk
0:04:13.1]} 8... Bd7 {[%clk 0:03:47.3]} 9. Nf3 {[%clk 0:04:11.3]} 9... c6 {[%clk
0:03:32.4]} 10. Bd3 {[%clk 0:03:53.8]} 10... cxd5 {[%clk 0:03:26.2]} 11. cxd5
{[%clk 0:03:52]} 11... e6 {[%clk 0:03:12.6]} 12. O-O {[%clk 0:03:31.7]} 12...
exd5 {[%clk 0:03:09.8]} 13. Re1+ {[%clk 0:03:31.3]} 13... Be7 {[%clk 0:03:08.8]}
14. Bd6 {[%clk 0:03:21.8]} 14... Be6 {[%clk 0:02:45.6]} 15. Bxg6 {[%clk
0:03:11]} 15... hxg6 {[%clk 0:02:42.4]} 16. Bxe7 {[%clk 0:02:57.3]} 16... Qxe7
{[%clk 0:02:38.4]} 17. Ng5 {[%clk 0:02:41.4]} 17... Qd6 {[%clk 0:02:36.3]} 18.
Nb5 {[%clk 0:02:32.2]} 18... Qxh2+ {[%clk 0:02:33.6]} 19. Kf1 {[%clk 0:02:25.7]}
19... Qh1+ {[%clk 0:02:25.6]} 20. Ke2 {[%clk 0:02:24.8]} 20... Qh5+ {[%clk
0:02:10.7]} 21. Nf3 {[%clk 0:02:16.3]} 21... Rc8 {[%clk 0:01:53.8]} 22. Nd6+
{[%clk 0:02:14.4]} 22... Kd7 {[%clk 0:01:46.2]} 23. Nxc8 {[%clk 0:02:11]} 23...
Rxc8 {[%clk 0:01:43.6]} 24. Qa4+ {[%clk 0:02:06.2]} 24... Kd8 {[%clk 0:01:29.7]}
25. Kf1 {[%clk 0:02:00.3]} 25... Qh1+ {[%clk 0:01:22.6]} 26. Ng1 {[%clk
0:01:59.1]} 26... d4 {[%clk 0:01:08.4]} 27. Qxd4+ {[%clk 0:01:57.2]} 27... Nd7
{[%clk 0:01:01.1]} 28. Qxg7 {[%clk 0:01:42.8]} 28... Bc4+ {[%clk 0:00:59.2]} 29.
Re2 {[%clk 0:01:36.5]} 29... Bxe2+ {[%clk 0:00:40.9]} 30. Kxe2 {[%clk
0:01:34.7]} 30... Qxg2 {[%clk 0:00:33.6]} 31. Qh8+ {[%clk 0:01:25.3]} 31... Ke7
{[%clk 0:00:29.9]} 32. Qxc8 {[%clk 0:01:15.6]} 32... Qe4+ {[%clk 0:00:26]} 33.
Kd2 {[%clk 0:01:04.1]} 33... Qd4+ {[%clk 0:00:19.7]} 34. Kc2 {[%clk 0:00:50.5]}
34... Qxf2+ {[%clk 0:00:16.5]} 35. Kb3 {[%clk 0:00:49.8]} 35... Qe3+ {[%clk
0:00:12.2]} 36. Qc3 {[%clk 0:00:46.8]} 36... Qe6+ {[%clk 0:00:08.6]} 37. Kc2
{[%clk 0:00:42.3]} 37... Qf5+ {[%clk 0:00:03.1]} 38. Qd3 {[%clk 0:00:38.3]} 1-0

[Event "Live Chess"]
[Site "Chess.com"]
[Date "2023.05.20"]
[Round "-"]
[White "weibs440"]
[Black "Nazar_777"]
[Result "0-1"]
[WhiteElo "929"]
[BlackElo "1579"]
[TimeControl "300"]
[EndTime "13:25:49 PDT"]
[Termination "Nazar_777 won by resignation"]

1. e4 {[%clk 0:04:58.6]} 1... e6 {[%clk 0:04:52]} 2. d4 {[%clk 0:04:51.4]} 2...
a6 {[%clk 0:04:51.2]} 3. Nd2 {[%clk 0:04:41.7]} 3... h5 {[%clk 0:04:50.3]} 4. f4
{[%clk 0:04:32.6]} 4... c5 {[%clk 0:04:49.3]} 5. Ngf3 {[%clk 0:04:29.3]} 5...
cxd4 {[%clk 0:04:48.2]} 6. Nxd4 {[%clk 0:04:27.6]} 6... Nc6 {[%clk 0:04:47.3]}
7. N2b3 {[%clk 0:04:09.8]} 7... Nf6 {[%clk 0:04:44.4]} 8. Bd3 {[%clk 0:04:05]}
8... Qb6 {[%clk 0:04:42.9]} 9. Be3 {[%clk 0:03:58.6]} 9... Bc5 {[%clk
0:04:41.4]} 10. Nxc5 {[%clk 0:03:48.5]} 10... Qxc5 {[%clk 0:04:38.8]} 11. Qe2
{[%clk 0:03:38.5]} 11... Nxd4 {[%clk 0:04:37.2]} 12. c3 {[%clk 0:03:32]} 12...
Nxe2 {[%clk 0:04:35.2]} 13. Bxc5 {[%clk 0:03:30.4]} 13... Nxf4 {[%clk
0:04:34.1]} 14. Bf1 {[%clk 0:03:07.3]} 14... Nxe4 {[%clk 0:04:32.5]} 15. Be3
{[%clk 0:02:59.7]} 15... Nd5 {[%clk 0:04:28.6]} 16. Bd4 {[%clk 0:02:42.8]} 16...
b5 {[%clk 0:04:02.1]} 17. O-O-O {[%clk 0:02:27.5]} 17... Rg8 {[%clk 0:04:00.2]}
18. Re1 {[%clk 0:02:19.4]} 18... Nd6 {[%clk 0:03:57.3]} 19. g3 {[%clk
0:02:15.1]} 19... Nc4 {[%clk 0:03:55.7]} 20. Bg2 {[%clk 0:02:06.9]} 20... Bb7
{[%clk 0:03:54]} 21. Rhf1 {[%clk 0:01:58.8]} 21... Rb8 {[%clk 0:03:51.6]} 22.
Bc5 {[%clk 0:01:34.1]} 22... Bc6 {[%clk 0:03:48.9]} 23. b3 {[%clk 0:01:30]}
23... Nxc3 {[%clk 0:03:42.7]} 24. bxc4 {[%clk 0:01:26.2]} 24... bxc4 {[%clk
0:03:41.4]} 25. Kc2 {[%clk 0:01:13.9]} 25... Bxg2 {[%clk 0:03:39.6]} 26. Rg1
{[%clk 0:01:06]} 26... Ne4 {[%clk 0:03:28.7]} 27. Rxg2 {[%clk 0:01:01.8]} 27...
Nxc5 {[%clk 0:03:27.2]} 0-1

[Event "Live Chess"]
[Site "Chess.com"]
[Date "2023.05.20"]
[Round "-"]
[White "chrisbradgate"]
[Black "whitedjohn"]
[Result "0-1"]
[WhiteElo "848"]
[BlackElo "1651"]
[TimeControl "300"]
[EndTime "13:25:58 PDT"]
[Termination "whitedjohn won by checkmate"]

1. d4 {[%clk 0:04:59.2]} 1... Nf6 {[%clk 0:04:57.1]} 2. Bf4 {[%clk 0:04:58.7]}
2... d5 {[%clk 0:04:54.4]} 3. e3 {[%clk 0:04:57.8]} 3... c5 {[%clk 0:04:51.1]}
4. c3 {[%clk 0:04:56.6]} 4... Nc6 {[%clk 0:04:49.4]} 5. Bb5 {[%clk 0:04:54]}
5... Qb6 {[%clk 0:04:48.5]} 6. a4 {[%clk 0:04:45.9]} 6... a6 {[%clk 0:04:44.8]}
7. Bxc6+ {[%clk 0:04:33.4]} 7... bxc6 {[%clk 0:04:44.4]} 8. b3 {[%clk
0:04:27.5]} 8... cxd4 {[%clk 0:04:41.3]} 9. exd4 {[%clk 0:04:21.9]} 9... Bf5
{[%clk 0:04:37.5]} 10. Nd2 {[%clk 0:04:15.6]} 10... e6 {[%clk 0:04:36.6]} 11.
Be5 {[%clk 0:04:11.2]} 11... Be7 {[%clk 0:04:35.6]} 12. h3 {[%clk 0:04:02.5]}
12... O-O {[%clk 0:04:34.2]} 13. Ngf3 {[%clk 0:04:01.6]} 13... Rac8 {[%clk
0:04:29.4]} 14. O-O {[%clk 0:03:59.8]} 14... c5 {[%clk 0:04:27.4]} 15. g4 {[%clk
0:03:51.5]} 15... Bg6 {[%clk 0:04:23.3]} 16. Nh4 {[%clk 0:03:34.1]} 16... Bd3
{[%clk 0:04:17.1]} 17. Re1 {[%clk 0:03:32.7]} 17... cxd4 {[%clk 0:04:13.8]} 18.
cxd4 {[%clk 0:03:23.2]} 18... Ne4 {[%clk 0:04:04.4]} 19. Nxe4 {[%clk 0:03:18.5]}
19... Bxe4 {[%clk 0:04:01.6]} 20. f3 {[%clk 0:03:14.4]} 20... Bxh4 {[%clk
0:03:58.9]} 21. fxe4 {[%clk 0:03:11.6]} 21... Bxe1 {[%clk 0:03:56.8]} 22. Qxe1
{[%clk 0:03:11]} 22... dxe4 {[%clk 0:03:52.2]} 23. Qh4 {[%clk 0:03:09.9]} 23...
f6 {[%clk 0:03:46.1]} 24. Bf4 {[%clk 0:02:54.8]} 24... Qxd4+ {[%clk 0:03:45.3]}
25. Kg2 {[%clk 0:02:34.3]} 25... Qxa1 {[%clk 0:03:44.4]} 26. g5 {[%clk
0:02:26.2]} 26... Rc2+ {[%clk 0:03:43.5]} 27. Kg3 {[%clk 0:02:24.8]} 27... Qc3+
{[%clk 0:03:42.1]} 28. Kg4 {[%clk 0:02:22]} 28... f5+ {[%clk 0:03:41.5]} 29. Kh5
{[%clk 0:02:20.8]} 29... g6+ {[%clk 0:03:40.5]} 30. Kh6 {[%clk 0:02:19.8]} 30...
Qg7# {[%clk 0:03:39.6]} 0-1

[Event "Live Chess"]
[Site "Chess.com"]
[Date "2023.05.20"]
[Round "-"]
[White "1600x"]
[Black "Duke_of_Bebington"]
[Result "1-0"]
[WhiteElo "1783"]
[BlackElo "1583"]
[TimeControl "300"]
[EndTime "13:26:03 PDT"]
[Termination "1600x won by resignation"]

1. e4 {[%clk 0:04:53.3]} 1... e5 {[%clk 0:04:57.8]} 2. Nc3 {[%clk 0:04:48.7]}
2... Nf6 {[%clk 0:04:55]} 3. d4 {[%clk 0:04:42.7]} 3... d6 {[%clk 0:04:42.7]} 4.
d5 {[%clk 0:04:38.5]} 4... c6 {[%clk 0:04:39.5]} 5. Nge2 {[%clk 0:04:35.3]} 5...
cxd5 {[%clk 0:04:37]} 6. exd5 {[%clk 0:04:33.4]} 6... Na6 {[%clk 0:04:25.3]} 7.
Ng3 {[%clk 0:04:33.3]} 7... Nc5 {[%clk 0:04:22.3]} 8. Be2 {[%clk 0:04:31]} 8...
Be7 {[%clk 0:04:13.7]} 9. Bf3 {[%clk 0:04:24.5]} 9... b6 {[%clk 0:04:09.4]} 10.
b4 {[%clk 0:04:21.3]} 10... Na6 {[%clk 0:03:56]} 11. a3 {[%clk 0:04:07.7]} 11...
Bb7 {[%clk 0:03:53.2]} 12. Nb5 {[%clk 0:04:03.3]} 12... Nc7 {[%clk 0:03:44.7]}
13. Nc3 {[%clk 0:04:01]} 13... O-O {[%clk 0:03:34.9]} 14. Nf5 {[%clk 0:03:59]}
14... Rc8 {[%clk 0:03:25]} 15. O-O {[%clk 0:03:56.7]} 15... Re8 {[%clk
0:03:16.3]} 16. Re1 {[%clk 0:03:54.4]} 16... Bf8 {[%clk 0:03:14.1]} 17. Bg5
{[%clk 0:03:52.3]} 17... g6 {[%clk 0:03:08.6]} 18. Nh4 {[%clk 0:03:48.4]} 18...
Bg7 {[%clk 0:03:06.7]} 19. Qd2 {[%clk 0:03:46.1]} 19... Qd7 {[%clk 0:02:42.8]}
20. Rad1 {[%clk 0:03:43.3]} 20... Kh8 {[%clk 0:02:18]} 21. a4 {[%clk 0:03:32.3]}
21... b5 {[%clk 0:02:09.5]} 22. Nxb5 {[%clk 0:03:27.3]} 22... Nxb5 {[%clk
0:02:06.5]} 23. axb5 {[%clk 0:03:27.2]} 23... Qxb5 {[%clk 0:02:05.3]} 24. Rb1
{[%clk 0:03:25.6]} 24... Nxd5 {[%clk 0:01:59]} 25. c4 {[%clk 0:03:23.2]} 25...
Rxc4 {[%clk 0:01:56.1]} 26. Be2 {[%clk 0:03:21.5]} 26... Qc6 {[%clk 0:00:57.4]}
27. Bxc4 {[%clk 0:03:18.8]} 27... Qxc4 {[%clk 0:00:57.3]} 28. Rec1 {[%clk
0:03:16.8]} 28... Qe4 {[%clk 0:00:54.1]} 29. Qa2 {[%clk 0:03:14]} 29... h6
{[%clk 0:00:45.7]} 30. Qxa7 {[%clk 0:03:08.3]} 30... Bc8 {[%clk 0:00:31.7]} 31.
Qxf7 {[%clk 0:03:02.7]} 31... Rf8 {[%clk 0:00:26.1]} 32. Nxg6+ {[%clk
0:02:44.6]} 32... Kh7 {[%clk 0:00:22.5]} 33. Nxf8+ {[%clk 0:02:42.4]} 1-0

[Event "Live Chess"]
[Site "Chess.com"]
[Date "2023.05.20"]
[Round "-"]
[White "luckywookie"]
[Black "Supertromp"]
[Result "0-1"]
[WhiteElo "744"]
[BlackElo "2201"]
[TimeControl "300"]
[EndTime "13:26:07 PDT"]
[Termination "Supertromp won by checkmate"]

1. e4 {[%clk 0:04:30.8]} 1... c5 {[%clk 0:04:54.5]} 2. c3 {[%clk 0:04:28.4]}
2... Nf6 {[%clk 0:04:52.4]} 3. e5 {[%clk 0:04:26.1]} 3... Nd5 {[%clk 0:04:51.5]}
4. Nf3 {[%clk 0:04:25.3]} 4... Nc6 {[%clk 0:04:49.2]} 5. Bc4 {[%clk 0:04:21]}
5... Nb6 {[%clk 0:04:38.4]} 6. Bb3 {[%clk 0:04:19.1]} 6... d5 {[%clk 0:04:34.8]}
7. d4 {[%clk 0:04:07.1]} 7... cxd4 {[%clk 0:04:27]} 8. cxd4 {[%clk 0:04:06.1]}
8... Bg4 {[%clk 0:04:25.1]} 9. Nbd2 {[%clk 0:03:58.2]} 9... Nxd4 {[%clk
0:04:15.6]} 10. Ba4+ {[%clk 0:03:44.6]} 10... Nc6 {[%clk 0:04:13.5]} 11. Qc2
{[%clk 0:03:28]} 11... Bxf3 {[%clk 0:03:51.7]} 12. Nxf3 {[%clk 0:03:26.1]} 12...
Nxa4 {[%clk 0:03:49.5]} 13. Qxa4 {[%clk 0:03:19]} 13... e6 {[%clk 0:03:48.7]}
14. O-O {[%clk 0:03:08.4]} 14... Bc5 {[%clk 0:03:43.1]} 15. Be3 {[%clk
0:03:05.5]} 15... Bxe3 {[%clk 0:03:40.2]} 16. fxe3 {[%clk 0:03:03.9]} 16... O-O
{[%clk 0:03:39.2]} 17. Qg4 {[%clk 0:02:54.9]} 17... Qb6 {[%clk 0:02:52.6]} 18.
Nd4 {[%clk 0:02:12.4]} 18... Nxe5 {[%clk 0:02:49]} 19. Qh3 {[%clk 0:02:05]}
19... Nc6 {[%clk 0:02:38.6]} 20. Rf2 {[%clk 0:01:57.2]} 20... Nxd4 {[%clk
0:02:37.2]} 21. exd4 {[%clk 0:01:55.6]} 21... Qxd4 {[%clk 0:02:37.1]} 22. Rf1
{[%clk 0:01:54]} 22... Rac8 {[%clk 0:02:34.6]} 23. Kh1 {[%clk 0:01:35.3]} 23...
Qxf2 {[%clk 0:02:32.7]} 24. Rxf2 {[%clk 0:01:33]} 24... Rc1+ {[%clk 0:02:31.7]}
25. Rf1 {[%clk 0:01:32.3]} 25... Rxf1# {[%clk 0:02:31.6]} 0-1

[Event "Live Chess"]
[Site "Chess.com"]
[Date "2023.05.20"]
[Round "-"]
[White "mightysmasher"]
[Black "Richardallis"]
[Result "1-0"]
[WhiteElo "2112"]
[BlackElo "1860"]
[TimeControl "300"]
[EndTime "13:26:08 PDT"]
[Termination "mightysmasher won by resignation"]

1. e4 {[%clk 0:04:59]} 1... d5 {[%clk 0:04:58.9]} 2. exd5 {[%clk 0:04:56.9]}
2... Nf6 {[%clk 0:04:58.3]} 3. c4 {[%clk 0:04:53.6]} 3... c6 {[%clk 0:04:57.2]}
4. dxc6 {[%clk 0:04:52.4]} 4... Nxc6 {[%clk 0:04:56.7]} 5. Nf3 {[%clk 0:04:52]}
5... e5 {[%clk 0:04:56.2]} 6. d3 {[%clk 0:04:51.3]} 6... Bc5 {[%clk 0:04:55.7]}
7. Be2 {[%clk 0:04:50.6]} 7... Bg4 {[%clk 0:04:53.8]} 8. O-O {[%clk 0:04:49.5]}
8... O-O {[%clk 0:04:52.7]} 9. Nc3 {[%clk 0:04:49]} 9... h6 {[%clk 0:04:51.2]}
10. h3 {[%clk 0:04:47.2]} 10... Bh5 {[%clk 0:04:49]} 11. Be3 {[%clk 0:04:45]}
11... Bb4 {[%clk 0:04:45.8]} 12. Ne4 {[%clk 0:04:42.5]} 12... Nxe4 {[%clk
0:04:43.1]} 13. dxe4 {[%clk 0:04:41.9]} 13... Bg6 {[%clk 0:04:41.8]} 14. Qc2
{[%clk 0:04:39.6]} 14... Re8 {[%clk 0:04:31.2]} 15. Rfd1 {[%clk 0:04:37]} 15...
Qc7 {[%clk 0:04:29.6]} 16. a3 {[%clk 0:04:35.9]} 16... Be7 {[%clk 0:04:26.8]}
17. b4 {[%clk 0:04:34.7]} 17... Rad8 {[%clk 0:04:15]} 18. Rd5 {[%clk 0:04:31.1]}
18... f6 {[%clk 0:04:11.7]} 19. Rad1 {[%clk 0:04:28.9]} 19... Rd6 {[%clk
0:04:05.9]} 20. Rxd6 {[%clk 0:04:24.3]} 20... Bxd6 {[%clk 0:04:04.3]} 21. c5
{[%clk 0:04:23.4]} 21... Bf8 {[%clk 0:04:02.1]} 22. Bc4+ {[%clk 0:04:21.9]}
22... Kh7 {[%clk 0:04:00.2]} 23. Bd5 {[%clk 0:04:21]} 23... Ne7 {[%clk
0:03:56.6]} 24. Qb3 {[%clk 0:04:18.6]} 24... Rd8 {[%clk 0:03:54.5]} 25. b5
{[%clk 0:04:15.9]} 25... Nxd5 {[%clk 0:03:39.5]} 26. Rxd5 {[%clk 0:04:14.9]}
26... Bxe4 {[%clk 0:03:37.2]} 27. Rxd8 {[%clk 0:04:13.6]} 27... Qxd8 {[%clk
0:03:36.1]} 28. Qf7 {[%clk 0:04:12.7]} 28... Qe7 {[%clk 0:03:21.4]} 29. Qc4
{[%clk 0:04:08.7]} 29... Bxf3 {[%clk 0:03:18.2]} 30. gxf3 {[%clk 0:04:07.6]}
30... Qc7 {[%clk 0:03:17.4]} 31. a4 {[%clk 0:04:05.4]} 31... b6 {[%clk 0:03:09]}
32. c6 {[%clk 0:04:03.8]} 32... Bd6 {[%clk 0:03:05.4]} 33. Qe6 {[%clk
0:04:02.8]} 33... Kg6 {[%clk 0:03:01]} 34. Kg2 {[%clk 0:03:58]} 34... Kh7 {[%clk
0:02:56.5]} 35. h4 {[%clk 0:03:56.2]} 35... h5 {[%clk 0:02:54.7]} 36. Qf5+
{[%clk 0:03:54.7]} 36... Kg8 {[%clk 0:02:51.7]} 37. Qxh5 {[%clk 0:03:52.9]}
37... Qf7 {[%clk 0:02:49.3]} 38. Qf5 {[%clk 0:03:50.7]} 38... Qc7 {[%clk
0:02:46.3]} 39. h5 {[%clk 0:03:48.5]} 39... Kf8 {[%clk 0:02:44.7]} 40. h6 {[%clk
0:03:47.1]} 40... gxh6 {[%clk 0:02:41.8]} 41. Bxh6+ {[%clk 0:03:46.5]} 41... Ke7
{[%clk 0:02:39.2]} 42. Qh7+ {[%clk 0:03:45.2]} 42... Ke6 {[%clk 0:02:37.7]} 43.
Qg8+ {[%clk 0:03:44.2]} 43... Qf7 {[%clk 0:02:35.9]} 44. Qg4+ {[%clk 0:03:37.2]}
44... f5 {[%clk 0:02:23.9]} 45. Qg5 {[%clk 0:03:31.9]} 45... Be7 {[%clk
0:02:17.2]} 46. Qd2 {[%clk 0:03:30.3]} 46... Qg6+ {[%clk 0:02:10.5]} 47. Kf1
{[%clk 0:03:29.2]} 47... Bd6 {[%clk 0:02:09.5]} 48. Qa2+ {[%clk 0:03:24.6]}
48... Ke7 {[%clk 0:02:06.2]} 49. Be3 {[%clk 0:03:22.9]} 49... f4 {[%clk
0:02:04.6]} 50. Bd2 {[%clk 0:03:20.5]} 50... Qd3+ {[%clk 0:02:03.3]} 51. Ke1
{[%clk 0:03:19.5]} 51... Qg6 {[%clk 0:01:44.4]} 52. Qd5 {[%clk 0:03:16.1]} 52...
Qe6 {[%clk 0:01:43.1]} 53. Qe4 {[%clk 0:03:13.5]} 53... Qf7 {[%clk 0:01:39.6]}
54. Ke2 {[%clk 0:03:10.3]} 54... Kd8 {[%clk 0:01:38.7]} 55. a5 {[%clk
0:03:05.1]} 55... Kc7 {[%clk 0:01:34.7]} 56. axb6+ {[%clk 0:03:02.8]} 56... axb6
{[%clk 0:01:33.4]} 57. Qa4 {[%clk 0:03:02]} 57... Kb8 {[%clk 0:01:27.6]} 58. Qe4
{[%clk 0:02:59.7]} 58... Kc7 {[%clk 0:01:23]} 59. Ke1 {[%clk 0:02:47.7]} 59...
Qg7 {[%clk 0:01:04.5]} 60. Qa4 {[%clk 0:02:39.2]} 60... Kb8 {[%clk 0:01:01]} 61.
Bb4 {[%clk 0:02:34.3]} 61... Qe7 {[%clk 0:00:51.6]} 62. Bxd6+ {[%clk 0:02:29.1]}
62... Qxd6 {[%clk 0:00:51.1]} 63. Qc4 {[%clk 0:02:27.8]} 63... Qe7 {[%clk
0:00:42.5]} 64. Ke2 {[%clk 0:02:24.5]} 64... Qa3 {[%clk 0:00:40.2]} 65. Qg8+
{[%clk 0:02:23]} 65... Kc7 {[%clk 0:00:38.1]} 66. Qf7+ {[%clk 0:02:21.8]} 66...
Kd6 {[%clk 0:00:37]} 67. Qf8+ {[%clk 0:02:21.1]} 67... Kd5 {[%clk 0:00:36]} 68.
Qxa3 {[%clk 0:02:19.6]} 1-0

[Event "Live Chess"]
[Site "Chess.com"]
[Date "2023.05.20"]
[Round "-"]
[White "TheSmoulderingMaster"]
[Black "ProfPoisson"]
[Result "0-1"]
[WhiteElo "1729"]
[BlackElo "1097"]
[TimeControl "300"]
[EndTime "13:26:08 PDT"]
[Termination "ProfPoisson won by resignation"]

1. e4 {[%clk 0:04:59.2]} 1... e5 {[%clk 0:04:54.4]} 2. Nf3 {[%clk 0:04:57.5]}
2... Nf6 {[%clk 0:04:51.7]} 3. Nxe5 {[%clk 0:04:56]} 3... Nxe4 {[%clk
0:04:50.1]} 4. Qe2 {[%clk 0:04:54.3]} 4... Qe7 {[%clk 0:04:48.6]} 5. Qxe4 {[%clk
0:04:52.8]} 5... d6 {[%clk 0:04:46.5]} 6. d4 {[%clk 0:04:52.1]} 6... dxe5 {[%clk
0:04:44.7]} 7. dxe5 {[%clk 0:04:51.6]} 7... Nc6 {[%clk 0:04:42.2]} 8. Bf4 {[%clk
0:04:49.3]} 8... g5 {[%clk 0:04:39.5]} 9. Bg3 {[%clk 0:04:47.4]} 9... f5 {[%clk
0:04:38]} 10. Qa4 {[%clk 0:04:35.5]} 10... f4 {[%clk 0:04:32.2]} 11. Be2 {[%clk
0:04:33.7]} 11... Qb4+ {[%clk 0:04:11.3]} 12. Qxb4 {[%clk 0:04:30.1]} 12... Nxb4
{[%clk 0:04:09.1]} 13. Na3 {[%clk 0:04:27.9]} 13... fxg3 {[%clk 0:04:05.4]} 14.
hxg3 {[%clk 0:04:27]} 14... Bf5 {[%clk 0:03:52.9]} 15. O-O-O {[%clk 0:04:25]}
15... Nxa2+ {[%clk 0:03:45.9]} 16. Kb1 {[%clk 0:04:24.3]} 16... Bxa3 {[%clk
0:03:41.6]} 17. bxa3 {[%clk 0:04:22.6]} 17... Nc3+ {[%clk 0:03:38.8]} 18. Kb2
{[%clk 0:04:21.4]} 18... Nxd1+ {[%clk 0:03:36.6]} 19. Rxd1 {[%clk 0:04:20.5]}
19... Rd8 {[%clk 0:03:34.2]} 20. Rh1 {[%clk 0:04:18.9]} 20... Rd2 {[%clk
0:03:31.3]} 21. Bf3 {[%clk 0:04:16.9]} 21... Rxc2+ {[%clk 0:03:27.8]} 22. Kb3
{[%clk 0:04:15.9]} 22... O-O {[%clk 0:03:24.1]} 23. Bxb7 {[%clk 0:04:13.5]}
23... Rb8 {[%clk 0:03:18.7]} 24. g4 {[%clk 0:04:06.4]} 24... Rxb7+ {[%clk
0:03:16.9]} 0-1

[Event "Live Chess"]
[Site "Chess.com"]
[Date "2023.05.20"]
[Round "-"]
[White "Stanbad1"]
[Black "JoshMcK"]
[Result "1-0"]
[WhiteElo "2422"]
[BlackElo "1582"]
[TimeControl "300"]
[EndTime "13:26:13 PDT"]
[Termination "Stanbad1 won by resignation"]

1. d4 {[%clk 0:04:57.7]} 1... Nf6 {[%clk 0:04:56.9]} 2. Bg5 {[%clk 0:04:56.1]}
2... e6 {[%clk 0:04:55.2]} 3. Nd2 {[%clk 0:04:53.9]} 3... Be7 {[%clk 0:04:54.2]}
4. e3 {[%clk 0:04:52.7]} 4... O-O {[%clk 0:04:53.4]} 5. Ngf3 {[%clk 0:04:51]}
5... Nd5 {[%clk 0:04:52.1]} 6. Bxe7 {[%clk 0:04:48.9]} 6... Qxe7 {[%clk
0:04:52]} 7. c3 {[%clk 0:04:47.6]} 7... c5 {[%clk 0:04:50.5]} 8. Bd3 {[%clk
0:04:46.2]} 8... cxd4 {[%clk 0:04:49.4]} 9. cxd4 {[%clk 0:04:44.6]} 9... Nc6
{[%clk 0:04:47.7]} 10. O-O {[%clk 0:04:43.6]} 10... Ncb4 {[%clk 0:04:45.9]} 11.
Bb1 {[%clk 0:04:41.7]} 11... Nf6 {[%clk 0:04:40.3]} 12. Nc4 {[%clk 0:04:39.5]}
12... d5 {[%clk 0:04:37]} 13. Nce5 {[%clk 0:04:37.7]} 13... Qc7 {[%clk
0:04:31.9]} 14. a3 {[%clk 0:04:34.9]} 14... Nc6 {[%clk 0:04:28.1]} 15. Bd3
{[%clk 0:04:30.2]} 15... Nxe5 {[%clk 0:04:23]} 16. Nxe5 {[%clk 0:04:27.8]} 16...
Nd7 {[%clk 0:04:17.1]} 17. Nxd7 {[%clk 0:04:24.5]} 17... Bxd7 {[%clk 0:04:14.9]}
18. Rc1 {[%clk 0:04:24.4]} 18... Bc6 {[%clk 0:04:13.7]} 19. b4 {[%clk
0:04:20.9]} 19... Qd7 {[%clk 0:04:11.5]} 20. Qc2 {[%clk 0:04:15.8]} 20... g6
{[%clk 0:04:09.8]} 21. Qb3 {[%clk 0:04:12.8]} 21... Ba4 {[%clk 0:04:05.7]} 22.
Qb2 {[%clk 0:04:10.2]} 22... Bc6 {[%clk 0:04:01.1]} 23. b5 {[%clk 0:04:08.2]}
23... Bxb5 {[%clk 0:03:55.9]} 24. Qxb5 {[%clk 0:04:06]} 24... Qe7 {[%clk
0:03:50.8]} 25. Qb4 {[%clk 0:04:01.5]} 25... Qxb4 {[%clk 0:03:48.7]} 26. axb4
{[%clk 0:04:00.3]} 26... a6 {[%clk 0:03:48]} 27. Rc7 {[%clk 0:03:58.8]} 27... b5
{[%clk 0:03:46.2]} 28. Ra1 {[%clk 0:03:57.6]} 28... Rfc8 {[%clk 0:03:42]} 29.
Rxc8+ {[%clk 0:03:56.2]} 29... Rxc8 {[%clk 0:03:41.9]} 30. h3 {[%clk 0:03:55.5]}
30... Ra8 {[%clk 0:03:40.5]} 31. Bxb5 {[%clk 0:03:53.5]} 1-0